bitfinex/quotes_BTCUSD_20250908
["timestamp","ask_amount","ask_price","bid_price","bid_amount"]
[1757316179178,1.08960432,111470.0,111460.0,0.00514001]
[1757316184892,1.08960432,111470.0,111460.0,1e-08]
[1757316185034,1.08960432,111470.0,111460.0,0.00514001]
[1757316185240,1.08960432,111470.0,111460.0,1e-08]
[1757316185636,1.08960432,111470.0,111460.0,0.00514001]
[1757316186556,1.08950307,111470.0,111460.0,0.00514001]
[1757316186773,1.08950307,111470.0,111460.0,1e-08]
[1757316186981,1.09242307,111470.0,111460.0,1e-08]
[1757316192134,1.08950307,111470.0,111460.0,1e-08]
[1757316193763,1.09008562,111470.0,111460.0,1e-08]
[1757316194668,1.09300562,111470.0,111460.0,1e-08]
[1757316198093,1.09008562,111470.0,111460.0,1e-08]
[1757316198294,1.09300562,111470.0,111460.0,1e-08]
[1757316198892,0.77675338,111470.0,111460.0,1e-08]
[1757316199109,1.09008562,111470.0,111460.0,1e-08]
[1757316199508,0.62727338,111470.0,111460.0,0.00206001]
[1757316199757,1.08801562,111470.0,111460.0,0.00514001]
[1757316199914,1.09001562,111470.0,111460.0,0.00514001]
[1757316200545,0.77668338,111470.0,111460.0,0.00514001]
[1757316200801,1.09001562,111470.0,111460.0,0.00514001]
[1757316201997,1.09001562,111470.0,111460.0,1e-08]
[1757316202802,1.08801562,111470.0,111460.0,0.00510001]
[1757316203183,1.08999562,111470.0,111460.0,0.00510001]
[1757316204779,1.08999562,111470.0,111460.0,1e-08]
[1757316205607,0.37690291,111470.0,111460.0,0.49786881]
[1757316205810,0.52630291,111470.0,111460.0,0.18453657]
[1757316206015,0.15934484,111470.0,111460.0,0.18453657]
[1757316206214,0.16214828,111470.0,111460.0,0.18453657]
[1757316206888,0.15914828,111470.0,111460.0,0.18453657]
[1757316209327,0.00974828,111470.0,111460.0,0.18453657]
[1757316209466,0.15914828,111470.0,111460.0,0.18453657]
[1757316210682,0.00974828,111470.0,111460.0,0.18453657]
[1757316210885,0.15914828,111470.0,111460.0,0.18453657]
[1757316214386,0.18610247,111470.0,111460.0,0.18453657]
[1757316214589,0.18329903,111470.0,111460.0,0.18453657]
[1757316214741,0.19251135,111470.0,111460.0,0.18453657]
[1757316219411,0.18329903,111470.0,111460.0,0.18453657]
[1757316222066,0.18329903,111470.0,111460.0,0.27645256]
[1757316222067,0.03389903,111470.0,111460.0,0.27645256]
[1757316222243,0.03670247,111470.0,111460.0,0.27645256]
[1757316222483,0.00974828,111470.0,111460.0,0.27645256]
[1757316223084,0.01865981,111470.0,111460.0,0.27645256]
[1757316223717,0.00974828,111470.0,111460.0,0.27645256]
[1757316224329,0.01895002,111470.0,111460.0,0.27645256]
[1757316225123,0.00974828,111470.0,111460.0,0.27645256]
[1757316228175,0.03670003,111470.0,111460.0,0.27645256]
[1757316230361,0.00974828,111470.0,111460.0,0.27645256]
[1757316231296,0.03670002,111470.0,111460.0,0.27645256]
[1757316233316,0.21612049,111470.0,111460.0,0.18453657]
[1757316233471,0.21331705,111470.0,111460.0,0.18453657]
[1757316234570,0.21317505,111470.0,111460.0,0.18453657]
[1757316235302,0.21322159,111470.0,111460.0,0.18453657]
[1757316236518,0.03380112,111470.0,111460.0,0.18453657]
[1757316236670,0.03660456,111470.0,111460.0,0.18453657]
[1757316237744,0.21602503,111470.0,111460.0,0.18453657]
[1757316237906,0.21322159,111470.0,111460.0,0.18453657]
[1757316238765,0.03380112,111470.0,111460.0,0.18453657]
[1757316238978,0.03660456,111470.0,111460.0,0.18453657]
[1757316240485,0.21602503,111470.0,111460.0,0.18453657]
[1757316240686,0.21322159,111470.0,111460.0,0.18453657]
[1757316245850,0.21520159,111470.0,111460.0,0.18453657]
[1757316247951,0.03380112,111470.0,111460.0,0.18453657]
[1757316248186,0.03660456,111470.0,111460.0,0.18453657]
[1757316248394,0.34987712,111470.0,111460.0,0.18453657]
[1757316248579,0.34707368,111470.0,111460.0,0.18453657]
[1757316248908,0.49643368,111470.0,111460.0,0.18453657]
[1757316253914,0.67585415,111470.0,111460.0,0.18453657]
[1757316257716,0.52649415,111470.0,111460.0,0.18453657]
[1757316257914,0.03380112,111470.0,111460.0,0.49780913]
[1757316258101,0.03660456,111470.0,111460.0,0.49780913]
[1757316258522,0.18596456,111470.0,111460.0,0.49780913]
[1757316258726,0.18316112,111470.0,111460.0,0.49780913]
[1757316259742,0.18316112,111470.0,111460.0,0.18453657]
[1757316259974,0.18316112,111470.0,111460.0,0.49780913]
[1757316260217,0.03380112,111470.0,111460.0,0.49780913]
[1757316260387,0.18596456,111470.0,111460.0,0.49780913]
[1757316260592,0.18316112,111470.0,111460.0,0.49780913]
[1757316263020,0.18316112,111470.0,111460.0,0.18453657]
[1757316265199,0.03380112,111470.0,111460.0,0.18453657]
[1757316265410,0.18596456,111470.0,111460.0,0.18453657]
[1757316265618,0.18316112,111470.0,111460.0,0.18453657]
[1757316265819,0.18316112,111470.0,111460.0,0.49780913]
[1757316270526,0.18289198,111470.0,111460.0,0.49780913]
[1757316270734,0.03353198,111470.0,111460.0,0.18453657]
[1757316270929,0.18289198,111470.0,111460.0,0.49780913]
[1757316283648,0.18289198,111470.0,111460.0,0.18453657]
[1757316283875,0.18289198,111470.0,111460.0,0.49780913]
[1757316285732,0.18289198,111470.0,111460.0,0.49728138]
[1757316290850,0.18289198,111470.0,111460.0,0.49828138]
[1757316291381,0.18289198,111470.0,111460.0,0.49928138]
[1757316291588,0.03353198,111470.0,111460.0,0.90446993]
[1757316291794,0.00658024,111470.0,111460.0,0.90446993]
[1757316292060,0.00658024,111470.0,111460.0,1.28670249]
[1757316292221,0.00658024,111470.0,111460.0,1.68670249]
[1757316292444,0.00658024,111470.0,111460.0,1.37342993]
[1757316293366,0.00658024,111470.0,111460.0,1.37242993]
[1757316293578,0.00658024,111470.0,111460.0,1.37142993]
[1757316293714,0.00658024,111470.0,111460.0,1.68570249]
[1757316293915,0.00658024,111470.0,111460.0,1.40237782]
[1757316294331,0.00658024,111470.0,111460.0,1.40137782]
[1757316294534,0.00658024,111470.0,111460.0,1.40337782]
[1757316295696,0.00658024,111470.0,111460.0,1.71665038]
[1757316295904,0.00658024,111470.0,111460.0,1.86597038]
[1757316296940,0.00658024,111470.0,111460.0,1.55269782]
[1757316299993,0.00658024,111470.0,111460.0,1.55269782]
[1757316303710,0.00658024,111470.0,111460.0,2.20597038]
[1757316304151,0.00658024,111470.0,111460.0,1.89269782]
[1757316304373,0.00658024,111470.0,111460.0,2.20597038]
[1757316305307,0.00658024,111470.0,111460.0,2.23010038]
[1757316306593,0.00658024,111470.0,111460.0,2.25820794]
[1757316308215,0.00658024,111470.0,111460.0,2.25620794]
[1757316308795,0.00658024,111470.0,111460.0,2.25920794]
[1757316309017,0.00658024,111470.0,111460.0,2.52240794]
[1757316309237,0.00658024,111470.0,111460.0,2.51940794]
[1757316309524,0.00658024,111470.0,111460.0,2.52240794]
[1757316310001,0.00658024,111470.0,111460.0,2.54334676]
[1757316310208,1e-08,111470.0,111460.0,2.54334676]
[1757316310424,1e-08,111470.0,111460.0,2.20136906]
[1757316311298,1e-08,111470.0,111460.0,2.25136906]
[1757316311512,1e-08,111470.0,111460.0,2.25132906]
[1757316311728,1e-08,111480.0,111470.0,1.16630683]
[1757316311967,0.0002,111490.0,111480.0,0.20034319]
[1757316311968,1e-08,111490.0,111480.0,0.20034319]
[1757316312200,1e-08,111490.0,111480.0,1.40945672]
[1757316312428,0.00063599,111520.0,111510.0,0.49232988]
[1757316312628,0.00063599,111520.0,111510.0,0.80244587]
[1757316312846,0.00068252,111520.0,111510.0,0.80762587]
[1757316313791,0.00068252,111520.0,111510.0,0.81648342]
[1757316314675,0.00068252,111520.0,111510.0,0.8434188]
[1757316315387,0.00068252,111520.0,111510.0,0.6941388]
[1757316315594,0.00068252,111520.0,111510.0,0.8433788]
[1757316316834,0.00068252,111520.0,111510.0,0.6941388]
[1757316317052,0.00068252,111520.0,111510.0,1.15635257]
[1757316317925,0.00068252,111520.0,111510.0,1.00711257]
[1757316318291,0.00068252,111520.0,111510.0,1.15635257]
[1757316318658,0.00068252,111520.0,111510.0,1.55635257]
[1757316320225,0.00068252,111520.0,111510.0,1.2433788]
[1757316320621,0.00068252,111520.0,111510.0,1.55635257]
[1757316327315,0.00068252,111520.0,111510.0,1.55935257]
[1757316327873,0.00068252,111520.0,111510.0,1.56135257]
[1757316328930,0.00068252,111520.0,111510.0,1.41211257]
[1757316329119,0.00068252,111520.0,111510.0,1.56131257]
[1757316330561,0.00068252,111520.0,111510.0,1.41211257]
[1757316330762,0.00068252,111520.0,111510.0,1.2483388]
[1757316332708,4.653e-05,111520.0,111510.0,1.2483388]
[1757316333534,4.653e-05,111520.0,111510.0,1.56131257]
[1757316334201,4.653e-05,111520.0,111510.0,1.53437719]
[1757316334584,4.653e-05,111520.0,111510.0,1.38517719]
[1757316334787,4.653e-05,111520.0,111510.0,1.53437719]
[1757316338269,4.653e-05,111520.0,111510.0,1.56131253]
[1757316339838,4.653e-05,111520.0,111510.0,0.78616499]
[1757316340014,4.653e-05,111520.0,111510.0,1.24833876]
[1757316341189,4.653e-05,111520.0,111510.0,1.56131253]
[1757316341418,4.653e-05,111520.0,111510.0,1.92536253]
[1757316341962,4.653e-05,111520.0,111510.0,1.95347009]
[1757316342573,4.653e-05,111520.0,111510.0,1.97440891]
[1757316344315,4.653e-05,111520.0,111510.0,1.94630135]
[1757316345279,4.653e-05,111520.0,111510.0,1.79710135]
[1757316345584,4.653e-05,111520.0,111510.0,1.94630135]
[1757316347495,4.653e-05,111520.0,111510.0,2.20950135]
[1757316349999,0.00144917,111550.0,111540.0,0.49228164]
[1757316350200,0.00149569,111550.0,111540.0,0.80223763]
[1757316350334,0.00149569,111550.0,111540.0,0.80759763]
[1757316350536,0.00149569,111550.0,111540.0,1.5308514]
[1757316350537,1e-08,111550.0,111540.0,1.5308514]
[1757316350736,1e-08,111550.0,111540.0,1.89179022]
[1757316350983,1e-08,111550.0,111540.0,1.26584268]
[1757316351179,1e-08,111550.0,111540.0,1.89179022]
[1757316351733,1e-08,111550.0,111540.0,1.42965645]
[1757316351945,1e-08,111550.0,111540.0,1.55863763]
[1757316352300,1e-08,111550.0,111540.0,1.56163763]
[1757316352701,1e-08,111550.0,111540.0,1.56363763]
[1757316353706,1e-08,111550.0,111540.0,1.89755022]
[1757316353844,1e-08,111550.0,111540.0,1.93859611]
[1757316354041,1e-08,111550.0,111540.0,1.62562234]
[1757316354256,1e-08,111550.0,111540.0,1.93859611]
[1757316354928,1e-08,111560.0,111550.0,0.17929179]
[1757316355133,0.0002,111570.0,111560.0,0.17927572]
[1757316355336,0.0002,111570.0,111560.0,1.07992548]
[1757316355561,0.0102,111580.0,111570.0,0.20019847]
[1757316355782,0.0102,111580.0,111570.0,1.480572]
[1757316356018,0.0102,111580.0,111570.0,1.16972823]
[1757316356219,0.0102,111580.0,111570.0,1.50986387]
[1757316356421,0.0102,111580.0,111570.0,1.90986387]
[1757316356846,0.0102,111580.0,111570.0,1.28387633]
[1757316357058,0.0102,111580.0,111570.0,1.5968501]
[1757316357266,0.0102,111580.0,111570.0,1.61626484]
[1757316357473,0.0102,111580.0,111570.0,1.59814881]
[1757316358344,0.0102,111580.0,111570.0,1.47495068]
[1757316358548,0.0102,111580.0,111570.0,1.93828445]
[1757316358911,0.0102,111580.0,111570.0,1.94028445]
[1757316359130,0.0102,111580.0,111570.0,1.16397691]
[1757316359314,0.0102,111580.0,111570.0,1.62759068]
[1757316359559,0.0102,111580.0,111570.0,1.13681504]
[1757316359735,0.0102,111580.0,111570.0,1.44978881]
[1757316360052,0.0102,111580.0,111570.0,1.60142881]
[1757316360824,0.0102,111580.0,111570.0,1.9353414]
[1757316361035,0.0102,111580.0,111570.0,1.9583414]
[1757316361236,0.0102,111580.0,111570.0,2.01054829]
[1757316364427,0.0102,111580.0,111570.0,1.38460075]
[1757316364581,0.0102,111580.0,111570.0,2.01054829]
[1757316364978,0.00269349,111610.0,111580.0,0.25914458]
[1757316365187,0.00269349,111610.0,111600.0,1.25801381]
[1757316365188,1e-08,111610.0,111600.0,1.25801381]
[1757316365422,1e-08,111610.0,111600.0,1.26014381]
[1757316365607,1e-08,111610.0,111600.0,1.71479728]
[1757316365833,1e-08,111610.0,111600.0,1.74170457]
[1757316366037,1e-08,111610.0,111600.0,1.78234955]
[1757316366268,1e-08,111610.0,111600.0,1.83234955]
[1757316366458,1e-08,111610.0,111600.0,1.75392608]
[1757316366604,1e-08,111610.0,111600.0,1.75692608]
[1757316366816,1e-08,111610.0,111600.0,1.11700012]
[1757316367022,1e-08,111610.0,111600.0,1.04639474]
[1757316367226,1e-08,111610.0,111600.0,0.70639474]
[1757316367441,1e-08,111610.0,111600.0,1.04639474]
[1757316367650,1e-08,111610.0,111600.0,0.70639474]
[1757316367854,0.31496378,111610.0,111600.0,0.34836745]
[1757316368055,0.31297378,111610.0,111600.0,0.49984745]
[1757316368266,1e-08,111610.0,111600.0,0.49984745]
[1757316368506,1e-08,111610.0,111600.0,0.50184745]
[1757316368703,1e-08,111610.0,111600.0,0.81482122]
[1757316369106,1e-08,111610.0,111600.0,0.49988745]
[1757316369309,0.31496378,111610.0,111600.0,0.31531599]
[1757316369483,0.31496378,111610.0,111600.0,0.49452745]
[1757316369694,1e-08,111610.0,111600.0,0.49988745]
[1757316369898,1e-08,111610.0,111600.0,0.49688745]
[1757316370232,1e-08,111610.0,111600.0,0.49888745]
[1757316370437,1e-08,111610.0,111600.0,0.80929696]
[1757316370657,1e-08,111610.0,111600.0,0.49688745]
[1757316370903,1e-08,111610.0,111600.0,0.80929696]
[1757316371115,1e-08,111610.0,111600.0,0.49688745]
[1757316371294,1e-08,111610.0,111600.0,0.81029696]
[1757316371697,1e-08,111610.0,111600.0,0.80929696]
[1757316373468,1e-08,111610.0,111600.0,1.12170647]
[1757316374020,1e-08,111610.0,111600.0,1.52170647]
[1757316375073,1e-08,111610.0,111600.0,1.52370647]
[1757316375486,1e-08,111610.0,111600.0,1.52470647]
[1757316375661,1e-08,111610.0,111600.0,1.21229696]
[1757316376506,1e-08,111610.0,111600.0,0.90000745]
[1757316376888,1e-08,111610.0,111600.0,1.21241696]
[1757316377093,1e-08,111610.0,111600.0,1.06077696]
[1757316377288,1e-08,111610.0,111600.0,1.21233696]
[1757316377491,1e-08,111610.0,111600.0,0.81233696]
[1757316378216,1e-08,111610.0,111600.0,1.12474647]
[1757316381388,1e-08,111610.0,111600.0,0.49992745]
[1757316381663,1e-08,111610.0,111600.0,0.81233696]
[1757316381834,1e-08,111610.0,111600.0,1.21233696]
[1757316382037,1e-08,111610.0,111600.0,1.23924925]
[1757316382250,1e-08,111610.0,111600.0,1.55165876]
[1757316384762,1e-08,111610.0,111600.0,1.45974277]
[1757316385192,1e-08,111610.0,111600.0,1.40009876]
[1757316385394,1e-08,111610.0,111600.0,1.55165876]
[1757316386250,1e-08,111610.0,111600.0,0.92683974]
[1757316386395,1e-08,111610.0,111600.0,1.55165876]
[1757316387456,1e-08,111610.0,111600.0,1.55157876]
[1757316388739,1e-08,111610.0,111600.0,1.40009876]
[1757316388878,1e-08,111610.0,111600.0,1.52466647]
[1757316389289,1e-08,111610.0,111600.0,1.37318647]
[1757316389618,1e-08,111610.0,111600.0,1.52474647]
[1757316389825,1e-08,111610.0,111600.0,1.52470647]
[1757316390473,1e-08,111610.0,111600.0,1.39942345]
[1757316390686,1e-08,111610.0,111600.0,1.55090345]
[1757316391335,1e-08,111610.0,111600.0,0.77460443]
[1757316391536,1e-08,111610.0,111600.0,1.21225696]
[1757316391740,1e-08,111610.0,111600.0,1.52466647]
[1757316392159,1e-08,111610.0,111600.0,1.37318647]
[1757316392428,1e-08,111610.0,111600.0,1.52470647]
[1757316392631,1e-08,111610.0,111600.0,1.37318647]
[1757316392903,1e-08,111610.0,111600.0,1.52470647]
[1757316393144,1e-08,111610.0,111600.0,0.89988745]
[1757316393346,1e-08,111610.0,111600.0,1.52470647]
[1757316393987,1e-08,111610.0,111600.0,0.89988745]
[1757316394213,1e-08,111610.0,111600.0,1.55094345]
[1757316394431,1e-08,111610.0,111600.0,1.57785439]
[1757316394727,1e-08,111610.0,111600.0,1.55094345]
[1757316396301,1e-08,111610.0,111600.0,1.89094345]
[1757316396508,1e-08,111610.0,111600.0,2.22429178]
[1757316396729,0.005,111630.0,111620.0,0.51909288]
[1757316397092,1e-08,111650.0,111630.0,0.1791633]
[1757316397304,1e-08,111650.0,111640.0,1.13931108]
[1757316397512,1e-08,111650.0,111640.0,1.12169226]
[1757316397687,1e-08,111650.0,111640.0,0.49687324]
[1757316397906,1e-08,111650.0,111640.0,1.12169226]
[1757316398257,1e-08,111650.0,111640.0,0.34527324]
[1757316398472,0.00203001,111650.0,111640.0,0.33990324]
[1757316398658,0.00203001,111650.0,111640.0,0.49150324]
[1757316398860,0.49653073,111650.0,111640.0,0.09191599]
[1757316399317,0.17915308,111640.0,111620.0,0.25689184]
[1757316399532,0.49452259,111640.0,111630.0,0.24359599]
[1757316399739,0.49655259,111640.0,111630.0,0.09191599]
[1757316399881,0.49655259,111640.0,111630.0,0.27107929]
[1757316400783,0.8089621,111640.0,111630.0,0.09191599]
[1757316400992,0.8089621,111640.0,111630.0,0.27107929]
[1757316401195,0.18414308,111640.0,111630.0,0.27107929]
[1757316401414,0.8089621,111640.0,111630.0,0.09191599]
[1757316402155,0.8089621,111640.0,111630.0,0.27107929]
[1757316402589,0.8089621,111640.0,111630.0,0.09191599]
[1757316402783,0.17917935,111620.0,111590.0,0.25307964]
[1757316402976,0.18495533,111610.0,111600.0,0.09205554]
[1757316403225,0.18418541,111610.0,111600.0,0.09205554]
[1757316403436,0.00499,111610.0,111600.0,0.271267]
[1757316403638,0.00778992,111610.0,111600.0,0.271267]
[1757316404278,0.32019943,111610.0,111600.0,0.271267]
[1757316404482,0.31739951,111610.0,111600.0,0.271267]
[1757316405851,0.31443951,111610.0,111600.0,0.271267]
[1757316409422,0.31739951,111610.0,111600.0,0.271267]
[1757316412761,0.31443951,111610.0,111600.0,0.273347]
[1757316412942,0.31443951,111610.0,111600.0,0.271267]
[1757316413344,0.00508,111610.0,111600.0,0.271267]
[1757316413517,0.32028943,111610.0,111600.0,0.271267]
[1757316413691,0.31443951,111610.0,111600.0,0.271267]
[1757316413890,0.31443951,111610.0,111600.0,0.276347]
[1757316414113,1.06089097,111630.0,111620.0,0.17917935]
[1757316414354,0.99716097,111630.0,111620.0,0.17917935]
[1757316414562,0.65446951,111630.0,111620.0,0.17917935]
[1757316414723,0.49354,111630.0,111620.0,0.17917935]
[1757316414922,0.5534461,111640.0,111630.0,0.1791633]
[1757316414923,0.17839615,111640.0,111630.0,0.1791633]
[1757316415149,0.02897615,111640.0,111630.0,0.1791633]
[1757316415348,0.02897615,111640.0,111620.0,0.58650485]
[1757316415349,0.99031159,111640.0,111620.0,0.27109534]
[1757316415548,0.52120725,111640.0,111630.0,0.1791633]
[1757316415753,0.49358,111640.0,111630.0,0.1791633]
[1757316415946,0.65446951,111640.0,111630.0,0.1791633]
[1757316416171,0.80598951,111640.0,111630.0,0.1791633]
[1757316416593,0.65446951,111640.0,111630.0,0.1791633]
[1757316416802,0.98513676,111640.0,111630.0,0.1791633]
[1757316417213,0.98818676,111640.0,111630.0,0.1791633]
[1757316417369,0.80594951,111640.0,111630.0,0.1791633]
[1757316417585,0.98509676,111640.0,111630.0,0.1791633]
[1757316417796,0.98509676,111640.0,111620.0,0.27409534]
[1757316417797,0.98814676,111640.0,111620.0,0.27409534]
[1757316418340,0.31240951,111630.0,111620.0,0.42253534]
[1757316418683,0.31446951,111630.0,111620.0,0.42253534]
[1757316418900,0.51914725,111640.0,111620.0,0.42761534]
[1757316419252,0.49363281,111630.0,111620.0,0.42253534]
[1757316419471,0.49363281,111630.0,111620.0,0.42761534]
[1757316419472,0.00206,111630.0,111620.0,0.42761534]
[1757316419679,0.02691309,111650.0,111640.0,0.17914725]
[1757316419901,0.02691309,111650.0,111640.0,0.27314324]
[1757316419902,0.4928226,111650.0,111640.0,0.27314324]
[1757316420142,0.65446952,111650.0,111640.0,0.42458324]
[1757316420351,0.83360073,111650.0,111640.0,0.42458324]
[1757316420487,0.65446952,111650.0,111640.0,0.42758324]
[1757316421075,0.83360073,111650.0,111640.0,0.42758324]
[1757316421534,0.65446952,111650.0,111640.0,0.42758324]
[1757316421741,0.83360073,111650.0,111640.0,0.42758324]
[1757316421950,0.83360073,111650.0,111640.0,0.42458324]
[1757316422555,0.83665073,111650.0,111640.0,0.09191599]
[1757316423143,0.65446952,111650.0,111640.0,0.27106324]
[1757316423366,0.65446952,111650.0,111640.0,0.58855275]
[1757316423367,1e-08,111650.0,111640.0,0.58855275]
[1757316423576,1e-08,111650.0,111640.0,0.96980226]
[1757316423798,1e-08,111650.0,111640.0,0.65739275]
[1757316425228,1e-08,111650.0,111640.0,1.05739275]
[1757316426414,1e-08,111650.0,111640.0,0.74498324]
[1757316426823,1e-08,111650.0,111640.0,1.07013855]
[1757316427816,1e-08,111650.0,111640.0,1.07113855]
[1757316429190,1e-08,111650.0,111640.0,0.74598324]
[1757316430387,1e-08,111650.0,111640.0,0.74498324]
[1757316430948,1e-08,111650.0,111640.0,0.74598324]
[1757316431148,1e-08,111650.0,111640.0,0.74498324]
[1757316431416,1e-08,111650.0,111640.0,0.74798324]
[1757316432363,1e-08,111650.0,111640.0,0.34798324]
[1757316432603,0.00206001,111650.0,111640.0,0.49926324]
[1757316432729,1e-08,111650.0,111640.0,0.89926324]
[1757316433413,1e-08,111650.0,111640.0,0.89826324]
[1757316433728,1e-08,111650.0,111640.0,0.89626324]
[1757316434160,1e-08,111650.0,111640.0,0.89726324]
[1757316434757,1e-08,111650.0,111640.0,1.39685487]
[1757316434929,1e-08,111650.0,111640.0,1.73685487]
[1757316435136,1e-08,111650.0,111640.0,1.76375528]
[1757316437021,1e-08,111650.0,111640.0,1.11188365]
[1757316437247,1e-08,111650.0,111640.0,1.23618324]
[1757316437421,1e-08,111650.0,111640.0,1.23818324]
[1757316438382,1e-08,111650.0,111640.0,0.74798324]
[1757316438806,1e-08,111650.0,111640.0,0.89918324]
[1757316440488,1e-08,111650.0,111640.0,0.74798324]
[1757316440793,1e-08,111650.0,111640.0,0.89914324]
[1757316442222,1e-08,111650.0,111640.0,0.74798324]
[1757316442386,1e-08,111650.0,111640.0,0.89910324]
[1757316443182,1e-08,111650.0,111640.0,0.49910324]
[1757316444659,1e-08,111650.0,111640.0,0.34798324]
[1757316444894,1e-08,111650.0,111640.0,0.49906324]
[1757316446543,1e-08,111650.0,111640.0,0.49902324]
[1757316446770,1e-08,111650.0,111640.0,0.49702324]
[1757316446975,1e-08,111650.0,111640.0,0.49602324]
[1757316447272,1e-08,111650.0,111640.0,0.34598324]
[1757316447273,0.00205001,111650.0,111640.0,0.34598324]
[1757316447445,0.00205001,111650.0,111640.0,0.49394324]
[1757316448060,0.00205001,111650.0,111640.0,0.34298324]
[1757316448282,0.00205001,111650.0,111640.0,0.49394324]
[1757316448716,0.00205001,111650.0,111640.0,0.49714324]
[1757316448934,1e-08,111650.0,111640.0,0.49714324]
[1757316450133,1e-08,111650.0,111640.0,0.89714324]
[1757316452359,1e-08,111650.0,111640.0,0.49714324]
[1757316452702,1e-08,111650.0,111640.0,1.20933731]
[1757316453721,1e-08,111650.0,111640.0,0.89714324]
[1757316454117,1e-08,111650.0,111640.0,1.20933731]
[1757316455056,1e-08,111650.0,111640.0,0.89714324]
[1757316456344,1e-08,111650.0,111640.0,0.49714324]
[1757316456527,0.00205001,111650.0,111640.0,0.34090324]
[1757316456745,0.00205001,111650.0,111640.0,0.49403324]
[1757316457177,0.00205001,111650.0,111640.0,0.49723324]
[1757316457385,1e-08,111650.0,111640.0,0.49723324]
[1757316458655,1e-08,111650.0,111640.0,0.80942731]
[1757316459063,1e-08,111650.0,111640.0,0.49723324]
[1757316460767,1e-08,111650.0,111640.0,0.80942731]
[1757316460975,1e-08,111650.0,111640.0,0.49723324]
[1757316461267,1e-08,111650.0,111640.0,0.80942731]
[1757316461786,1e-08,111650.0,111640.0,0.49723324]
[1757316462211,1e-08,111650.0,111640.0,0.34090324]
[1757316462423,0.00205001,111650.0,111640.0,0.49186324]
[1757316463343,0.00205001,111650.0,111640.0,0.49395324]
[1757316463553,0.00205001,111650.0,111640.0,0.49715324]
[1757316464601,0.00498001,111650.0,111640.0,0.49182324]
[1757316465008,0.31717408,111650.0,111640.0,0.42298324]
[1757316466031,0.49630529,111650.0,111640.0,0.09291599]
[1757316466295,0.64722529,111650.0,111640.0,0.001]
[1757316467152,0.64722529,111650.0,111630.0,0.17916015]
[1757316467369,0.31499324,111640.0,111630.0,0.27107614]
[1757316467577,0.31717407,111640.0,111630.0,0.27107614]
[1757316467973,0.49632132,111640.0,111630.0,0.27107614]
[1757316470634,0.49632132,111640.0,111630.0,0.09191599]
[1757316471395,0.49632132,111640.0,111620.0,0.33905831]
[1757316471396,0.17917182,111630.0,111620.0,0.15092]
[1757316471638,0.49432589,111630.0,111620.0,0.24283599]
[1757316471838,0.49634589,111630.0,111620.0,0.24283599]
[1757316472458,0.00202,111630.0,111620.0,0.42201534]
[1757316473013,0.00202,111630.0,111620.0,0.27109534]
[1757316473227,0.00481942,111630.0,111620.0,0.42201534]
[1757316473821,0.53491408,111650.0,111640.0,0.17914725]
[1757316474071,0.64722529,111650.0,111640.0,0.17914725]
[1757316474249,0.49630529,111650.0,111640.0,0.17914725]
[1757316474470,0.64722529,111650.0,111640.0,0.17914725]
[1757316474688,0.64722529,111650.0,111630.0,0.1791633]
[1757316474902,0.31219407,111640.0,111630.0,0.27107929]
[1757316475083,0.31421407,111640.0,111630.0,0.27107929]
[1757316475488,0.31717407,111640.0,111630.0,0.27107929]
[1757316476090,0.49632132,111640.0,111630.0,0.3300833]
[1757316476979,0.49632132,111640.0,111620.0,0.18813831]
[1757316477214,0.31795349,111630.0,111620.0,0.4309343]
[1757316477418,0.00498,111630.0,111620.0,0.4309343]
[1757316477670,0.31997349,111630.0,111620.0,0.4309343]
[1757316477985,0.31717407,111630.0,111620.0,0.4309343]
[1757316478284,0.64725737,111630.0,111620.0,0.2800543]
[1757316478814,0.31421407,111630.0,111620.0,0.2800543]
[1757316481064,0.31717407,111630.0,111620.0,0.2800543]
[1757316481830,0.31421407,111630.0,111620.0,0.2800543]
[1757316482247,0.31717407,111630.0,111620.0,0.2800543]
[1757316482842,0.49633737,111630.0,111610.0,0.18814169]
[1757316483045,0.49713309,111620.0,111610.0,0.43107723]
[1757316483452,0.49635342,111620.0,111610.0,0.43107723]
[1757316483632,0.49635342,111620.0,111610.0,0.00013955]
[1757316483851,0.18415935,111620.0,111610.0,0.15101955]
[1757316484064,0.18415935,111620.0,111610.0,0.33021496]
[1757316484276,0.49635342,111620.0,111610.0,0.33021496]
[1757316484475,0.64723342,111620.0,111610.0,0.00013955]
[1757316485037,0.33503935,111620.0,111610.0,0.00013955]
[1757316485248,0.64723342,111620.0,111610.0,0.00013955]
[1757316490272,0.64719342,111620.0,111610.0,0.00013955]
[1757316491818,1.03116224,111620.0,111610.0,0.00013955]
[1757316492572,1.65669125,111620.0,111610.0,0.00013955]
[1757316493010,1.74860724,111620.0,111610.0,0.00013955]
[1757316493227,2.68633032,111620.0,111610.0,0.00013955]
[1757316493452,1.76790319,111620.0,111610.0,0.00013955]
[1757316493936,1.7947876,111620.0,111610.0,0.00013955]
[1757316494136,1.6439876,111620.0,111610.0,0.00013955]
[1757316494317,1.77549165,111620.0,111610.0,0.00013955]
[1757316494523,1.79478389,111620.0,111610.0,0.00013955]
[1757316494872,1.76785948,111620.0,111610.0,0.00013955]
[1757316495088,1.21256913,111620.0,111610.0,0.00013955]
[1757316495292,1.34403689,111620.0,111610.0,0.00013955]
[1757316495493,1.74852724,111620.0,111610.0,0.00013955]
[1757316496239,1.78796817,111620.0,111610.0,0.00013955]
[1757316496540,1.74856724,111620.0,111610.0,0.00013955]
[1757316498651,1.74852724,111620.0,111610.0,0.00013955]
[1757316498855,1.59776724,111620.0,111610.0,0.00013955]
[1757316499019,1.28519288,111620.0,111610.0,0.00013955]
[1757316499232,1.41288288,111620.0,111610.0,0.00013955]
[1757316499438,0.98096689,111620.0,111610.0,0.00013955]
[1757316499660,0.80930807,111620.0,111610.0,0.17933496]
[1757316499935,1.30002807,111620.0,111610.0,0.00013955]
[1757316500319,1.30002807,111620.0,111610.0,0.17933496]
[1757316500721,1.14634807,111620.0,111610.0,0.17933496]
[1757316500917,0.46531436,111620.0,111610.0,0.18423496]
[1757316501493,0.15274,111620.0,111610.0,0.18130496]
[1757316501699,0.46811403,111620.0,111610.0,0.18130496]
[1757316501910,0.46531436,111620.0,111610.0,0.18423496]
[1757316502116,0.25694461,111640.0,111620.0,0.17917935]
[1757316502329,0.64718708,111630.0,111620.0,0.18114935]
[1757316502538,0.46526436,111630.0,111620.0,0.18114935]
[1757316502959,0.46526436,111630.0,111620.0,0.17917935]
[1757316507210,0.95996202,111630.0,111610.0,0.09205554]
[1757316507391,0.80712774,111620.0,111610.0,0.27125037]
[1757316507615,0.80712774,111620.0,111610.0,0.09205554]
[1757316507616,0.80925807,111620.0,111610.0,0.09205554]
[1757316507818,0.80925807,111620.0,111610.0,0.00013955]
[1757316509831,0.80629807,111620.0,111610.0,0.17933496]
[1757316510031,0.80629807,111620.0,111610.0,0.18130496]